fUSD/lending_fUSD_20241024
["ID","MTS","AMOUNT","RATE_DAILY","PERIOD"]
[340771530,1729789885211,-803.8,0.00063397,120]
[340771531,1729789885221,-5209.5,0.00063397,120]
[340771532,1729789885230,-1019.39,0.00063397,120]
[340771533,1729789885239,-1562.94,0.00063397,120]
[340771534,1729789885248,-500.0,0.00063397,120]
[340771535,1729789885257,-1233.15,0.00063397,120]
[340771536,1729789885267,-510.22,0.00063397,120]
[340771537,1729789885276,-1364.5,0.00063397,120]
[340771538,1729789885286,-500.0,0.00063397,120]
[340771539,1729789885295,-500.0,0.00063397,120]
[340771540,1729789885304,-1393.17,0.00063397,120]
[340771541,1729789885313,-1914.61,0.00063397,120]
[340771542,1729789885323,-500.0,0.00063397,120]
[340771543,1729789885333,-1696.6,0.00063397,120]
[340771544,1729789885342,-1440.78,0.00063397,120]
[340771545,1729789885351,-1577.79,0.00063397,120]
[340771546,1729789885360,-851.28,0.00063397,120]
[340771547,1729789885369,-151.0,0.00063397,120]
[340771548,1729789885378,-500.0,0.00063397,120]
[340771549,1729789885386,-151.0,0.00063397,120]
[340771550,1729789885395,-500.0,0.00063397,120]
[340771551,1729789885404,-151.0,0.00063397,120]
[340771552,1729789885414,-606.71,0.00063397,120]
[340771553,1729789885423,-500.0,0.00063397,120]
[340771554,1729789885432,-500.0,0.00063397,120]
[340771555,1729789885441,-716.22,0.00063397,120]
[340771556,1729789885450,-279.40934089,0.00063397,120]
[340771557,1729789885459,-4062.48,0.00063397,120]
[340771558,1729789885468,-500.0,0.00063397,120]
[340771559,1729789885478,-2173.08,0.00063397,120]
[340771560,1729789885487,-500.0,0.00063397,120]
[340771561,1729789885496,-500.0,0.00063397,120]
[340771562,1729789885505,-500.0,0.00063397,90]
[340771563,1729789885514,-1292.02,0.00063397,120]
[340771564,1729789885523,-752.16,0.00063397,120]
[340771565,1729789885532,-2005.65,0.00063397,120]
[340771566,1729789885541,-151.0,0.00063397,120]
[340771567,1729789885551,-4076.405956,0.00063397,120]
[340771568,1729789885560,-4076.405956,0.00063397,120]
[340771569,1729789885569,-108.72618916,0.00063397,120]
[340771570,1729789885713,-594.98381084,0.00063397,120]
[340771571,1729789885722,-484.84243318,0.00063397,120]
[340771572,1729789885734,-3585.40756682,0.00063397,120]
[340771573,1729789885743,-1381.94,0.00063397,60]
[340771574,1729789885752,-2576.75,0.00063397,120]
[340771575,1729789885762,-1900.97,0.00063397,120]
[340771576,1729789885771,-500.0,0.00063397,120]
[340771577,1729789885781,-418.84677742,0.00063397,120]
[340771578,1729789885791,-500.0,0.00063397,120]
[340771579,1729789885800,-572.99,0.00063397,21]
[340771580,1729789885809,-500.0,0.00063397,120]
[340771581,1729789885819,-1414.56,0.00063397,120]
[340771582,1729789885828,-563.98,0.00063397,120]
[340771583,1729789885838,-300.41370694,0.00063397,120]
[340771584,1729789885849,-706.55629306,0.00063397,120]
[340771585,1729789885859,-320.528418,0.00063398,120]
[340771586,1729789885868,-498.46141179,0.00063398,120]
[340771587,1729789885877,-328.53194245,0.00063398,120]
[340771588,1729789885887,-500.0,0.00063398,120]
[340771589,1729789885897,-500.0,0.00063398,120]
[340771590,1729789885906,-659.56,0.00063398,120]
[340771591,1729789885916,-659.56,0.00063398,120]
[340771592,1729789885926,-500.0,0.00063398,120]
[340771593,1729789885935,-500.0,0.00063398,120]
[340771594,1729789885945,-876.2,0.00063398,120]
[340771595,1729789885955,-876.2,0.00063398,120]
[340771596,1729789885965,-500.0,0.00063398,120]
[340771597,1729789885975,-500.0,0.00063398,120]
[340771598,1729789885984,-913.65,0.00063398,120]
[340771599,1729789885993,-913.65,0.00063398,120]
[340771600,1729789886003,-545.44,0.00063398,120]
[340771601,1729789886013,-545.44,0.00063398,120]
[340771602,1729789886023,-1060.66,0.00063398,120]
[340771603,1729789886032,-1060.66,0.00063398,120]
[340771604,1729789886042,-562.05,0.00063398,120]
[340771605,1729789886052,-562.05,0.00063398,120]
[340771606,1729789886062,-510.57,0.00063398,120]
[340771607,1729789886071,-510.57,0.00063398,120]
[340771608,1729789886081,-766.77,0.00063398,120]
[340771609,1729789886091,-467.40861797,0.00063398,120]
[340771610,1729789886107,-299.36138203,0.00063398,120]
[340771611,1729789886117,-948.63,0.00063398,120]
[340771612,1729789886126,-948.63,0.00063398,120]
[340771613,1729789886136,-500.0,0.00063398,120]
[340771614,1729789886146,-500.0,0.00063398,120]
[340771615,1729789886156,-803.8,0.00063398,120]
[340771616,1729789886165,-803.8,0.00063398,120]
[340771617,1729789886174,-4039.70337099,0.00063398,120]
[340771618,1729789886186,-1169.79662901,0.00063398,120]
[340771619,1729789886196,-505.95186513,0.00063398,120]
[340771620,1729789886207,-2034.76206701,0.00063398,120]
[340771621,1729789886219,-2668.78606786,0.00063398,120]
[340771622,1729789886229,-1019.39,0.00063398,120]
[340771623,1729789886238,-1019.39,0.00063398,120]
[340771624,1729789886247,-1562.94,0.00063398,120]
[340771625,1729789886257,-1562.94,0.00063398,120]
[340771626,1729789886267,-500.0,0.00063398,120]
[340771627,1729789886276,-361.12505948,0.00063398,120]
[340771628,1729789886287,-138.87494052,0.00063398,120]
[340771629,1729789886296,-1233.15,0.00063398,120]
[340771630,1729789886306,-1233.15,0.00063398,120]
[340771631,1729789886316,-510.22,0.00063398,120]
[340771632,1729789886326,-510.22,0.00063398,120]
[340771633,1729789886337,-1364.5,0.00063398,120]
[340771634,1729789886346,-1364.5,0.00063398,120]
[340771635,1729789886355,-605.06588311,0.00063398,120]
[340771636,1729789886365,-500.0,0.00063398,120]
[340771637,1729789886375,-500.0,0.00063398,120]
[340771638,1729789886385,-1393.17,0.00063398,120]
[340771639,1729789886395,-1393.17,0.00063398,120]
[340771640,1729789886405,-500.0,0.00063398,120]
[340771641,1729789886414,-500.0,0.00063398,120]
[340771642,1729789886424,-1914.61,0.00063398,120]
[340771643,1729789886433,-1914.61,0.00063398,120]
[340771644,1729789886443,-500.0,0.00063398,120]
[340771645,1729789886452,-500.0,0.00063398,120]
[340771646,1729789886462,-1696.6,0.00063398,120]
[340771647,1729789886471,-1696.6,0.00063398,120]
[340771648,1729789886481,-151.0,0.00063398,120]
[340771649,1729789886491,-151.0,0.00063398,120]
[340771650,1729789886501,-500.0,0.00063398,120]
[340771651,1729789886510,-500.0,0.00063398,120]
[340771652,1729789886519,-1440.78,0.00063398,120]
[340771653,1729789886528,-1440.78,0.00063398,120]
[340771654,1729789886537,-151.0,0.00063398,120]
[340771655,1729789886547,-1577.79,0.00063398,120]
[340771656,1729789886557,-1577.79,0.00063398,120]
[340771657,1729789886566,-851.28,0.00063398,120]
[340771658,1729789886576,-851.28,0.00063398,120]
[340771659,1729789886586,-500.0,0.00063398,120]
[340771660,1729789886595,-500.0,0.00063398,120]
[340771661,1729789886605,-500.0,0.00063398,120]
[340771662,1729789886614,-500.0,0.00063398,120]
[340771663,1729789886624,-500.0,0.00063398,120]
[340771664,1729789886634,-500.0,0.00063398,120]
[340771665,1729789886643,-606.71,0.00063398,120]
[340771666,1729789886653,-606.71,0.00063398,120]
[340771667,1729789886664,-500.0,0.00063398,120]
[340771668,1729789886672,-500.0,0.00063398,120]
[340771669,1729789886682,-500.0,0.00063398,120]
[340771670,1729789886692,-500.0,0.00063398,120]
[340771671,1729789886702,-500.0,0.00063398,120]
[340771672,1729789886711,-4656.98964169,0.00063398,120]
[340771673,1729789886723,-773.52035831,0.00063398,120]
[340771674,1729789886733,-936.19,0.00063398,120]
[340771675,1729789886742,-500.0,0.00063398,120]
[340771676,1729789886751,-936.19,0.00063398,120]
[340771677,1729789886761,-500.0,0.00063398,120]
[340771678,1729789886771,-500.0,0.00063398,120]
[340771679,1729789886780,-500.0,0.00063398,120]
[340771680,1729789886789,-500.0,0.00063398,120]
[340771681,1729789886798,-500.0,0.00063398,120]
[340771682,1729789886808,-500.0,0.00063398,120]
[340771683,1729789886817,-500.0,0.00063398,120]
[340771684,1729789886826,-500.0,0.00063398,120]
[340771685,1729789886837,-734.31,0.00063398,120]
[340771686,1729789886846,-734.31,0.00063398,120]
[340771687,1729789886855,-716.22,0.00063398,120]
[340771688,1729789886864,-503.45437501,0.00063398,120]
[340771689,1729789886876,-212.76562499,0.00063398,120]
[340771690,1729789886885,-907.88,0.00063398,120]
[340771691,1729789886895,-255.27400612,0.00063398,120]
[340771692,1729789886907,-455.89470494,0.00063398,120]
[340771693,1729789886918,-196.71128894,0.00063398,120]
[340771694,1729789886928,-4062.48,0.00063398,120]
[340771695,1729789886937,-4062.48,0.00063398,120]
[340771696,1729789886947,-2098.06,0.00063398,120]
[340771697,1729789886957,-2098.06,0.00063398,120]
[340771698,1729789886967,-1429.13,0.00063398,120]
[340771699,1729789886976,-1429.13,0.00063398,120]
[340771700,1729789886986,-1429.13,0.00063398,120]
[340771701,1729789886995,-522.68,0.00063398,120]
[340771702,1729789887005,-522.68,0.00063398,120]
[340771703,1729789887015,-500.0,0.00063398,120]
[340771704,1729789887024,-500.0,0.00063398,120]
[340771705,1729789887034,-2173.08,0.00063398,120]
[340771706,1729789887044,-2173.08,0.00063398,120]
[340771707,1729789887053,-1067.54,0.00063398,120]
[340771708,1729789887063,-916.23,0.00063398,120]
[340771709,1729789887073,-916.23,0.00063398,120]
[340771710,1729789887082,-1202.54,0.00063398,120]
[340771711,1729789887092,-500.0,0.00063398,120]
[340771712,1729789887103,-500.0,0.00063398,120]
[340771713,1729789887112,-1202.54,0.00063398,120]
[340771714,1729789887121,-1202.54,0.00063398,120]
[340771715,1729789887131,-500.0,0.00063398,120]
[340771716,1729789887140,-604.73815228,0.00063398,120]
[340771717,1729789887150,-500.0,0.00063398,120]
[340771718,1729789887159,-500.0,0.00063398,120]
[340771719,1729789887169,-500.0,0.00063398,90]
[340771720,1729789887180,-500.0,0.00063398,90]
[340771721,1729789887189,-1292.02,0.00063398,120]
[340771722,1729789887198,-1292.02,0.00063398,120]
[340771723,1729789887208,-500.0,0.00063398,120]
[340771724,1729789887217,-500.0,0.00063398,120]
[340771725,1729789887226,-752.16,0.00063398,120]
[340771726,1729789887236,-2005.65,0.00063398,120]
[340771727,1729789887245,-752.16,0.00063398,120]
[340771728,1729789887255,-2005.65,0.00063398,120]
[340771729,1729789887264,-1939.08,0.00063398,120]
[340771730,1729789887275,-625.65936171,0.00063398,120]
[340771731,1729789887285,-703.71,0.00063398,120]
[340771732,1729789887294,-703.71,0.00063398,120]
[340771733,1729789887304,-4070.25,0.00063398,120]
[340771734,1729789887313,-4070.25,0.00063398,120]
[340771735,1729789887323,-2593.06,0.00063398,120]
[340771736,1729789887332,-1381.94,0.00063398,60]
[340771737,1729789887345,-2593.06,0.00063398,120]
[340771738,1729789887354,-1381.94,0.00063398,60]
[340771739,1729789887363,-2593.06,0.00063398,120]
[340771740,1729789887372,-2576.75,0.00063398,120]
[340771741,1729789887382,-2576.75,0.00063398,120]
[340771742,1729789887392,-1900.97,0.00063398,120]
[340771743,1729789887401,-1900.97,0.00063398,120]
[340771744,1729789887410,-500.0,0.00063398,120]
[340771745,1729789887419,-500.0,0.00063398,120]
[340771746,1729789887428,-2139.75,0.00063398,120]
[340771747,1729789887438,-2139.75,0.00063398,120]
[340771748,1729789887447,-500.0,0.00063398,120]
[340771749,1729789887456,-500.0,0.00063398,120]
[340771750,1729789887466,-572.99,0.00063398,21]
[340771751,1729789887475,-572.99,0.00063398,21]
[340771752,1729789887484,-586.14,0.00063398,120]
[340771753,1729789887493,-586.14,0.00063398,120]
[340771754,1729789887502,-500.0,0.00063398,120]
[340771755,1729789887512,-500.0,0.00063398,120]
[340771756,1729789887522,-1414.56,0.00063398,120]
[340771757,1729789887531,-1414.56,0.00063398,120]
[340771758,1729789887541,-635.98,0.00063398,120]
[340771759,1729789887550,-635.98,0.00063398,120]
[340771760,1729789887559,-563.98,0.00063398,120]
[340771761,1729789887568,-563.98,0.00063398,120]
[340771762,1729789887578,-1006.97,0.00063398,120]
[340771763,1729789887589,-1006.97,0.00063398,120]
[340771764,1729789887598,-1006.97,0.00063398,120]
[340771765,1729789887609,-72808.73220538,0.00063399,60]
[340771766,1729789887618,-500.0,0.00063399,120]
[340771767,1729789887628,-500.0,0.00063399,120]
[340771768,1729789887637,-502.495925,0.00063399,120]
[340771769,1729789887647,-526.24998675,0.00063399,120]
[340771770,1729789887656,-500.0,0.00063399,120]
[340771771,1729789887665,-500.0,0.00063399,120]
[340771772,1729789887675,-500.0,0.00063399,120]
[340771773,1729789887784,-500.0,0.00063399,120]
[340771774,1729789887795,-500.0,0.00063399,120]
[340771775,1729789887805,-500.0,0.00063399,120]
[340771776,1729789887814,-500.0,0.00063399,120]
[340771777,1729789887823,-500.0,0.00063399,120]
[340771778,1729789887834,-500.0,0.00063399,120]
[340771779,1729789887848,-500.0,0.00063399,120]
[340771780,1729789887857,-500.0,0.00063399,120]
[340771781,1729789887866,-500.0,0.00063399,120]
[340771782,1729789887875,-500.0,0.00063399,120]
[340771783,1729789887885,-500.0,0.00063399,120]
[340771784,1729789887894,-500.0,0.00063399,120]
[340771785,1729789887904,-500.0,0.00063399,120]
[340771786,1729789887914,-500.0,0.00063399,120]
[340771787,1729789887924,-631.16350853,0.00063399,120]
[340771788,1729789887933,-500.0,0.00063399,120]
[340771789,1729789887942,-500.0,0.00063399,120]
[340771790,1729789887952,-500.0,0.00063399,120]
[340771791,1729789887961,-500.0,0.00063399,120]
[340771792,1729789887971,-500.0,0.00063399,120]
[340771793,1729789887980,-500.0,0.00063399,120]
[340771794,1729789887990,-198.84947784,0.00063399,120]
[340771795,1729789887999,-500.0,0.00063399,120]
[340771796,1729789888009,-500.0,0.00063399,120]
[340771797,1729789888018,-500.0,0.00063399,120]
[340771798,1729789888027,-500.0,0.00063399,120]
[340771799,1729789888037,-500.0,0.00063399,120]
[340771800,1729789888046,-500.0,0.00063399,120]
[340771801,1729789888055,-500.0,0.00063399,120]
[340771802,1729789888065,-500.0,0.00063399,120]
[340771803,1729789888074,-500.0,0.00063399,120]
[340771804,1729789888087,-502.76185988,0.00063399,120]
[340771805,1729789888098,-500.0,0.00063399,120]
[340771806,1729789888108,-500.0,0.00063399,120]
[340771807,1729789888118,-500.0,0.00063399,120]
[340771808,1729789888126,-151.02467623,0.00063399,120]
[340771809,1729789888136,-500.0,0.00063399,120]
[340771810,1729789888147,-500.0,0.00063399,120]
[340771811,1729789888156,-500.0,0.00063399,120]
[340771812,1729789888166,-596.70952025,0.00063399,120]
[340771813,1729789888177,-500.0,0.00063399,120]
[340771814,1729789888186,-500.0,0.00063399,120]
[340771815,1729789888196,-500.0,0.00063399,120]
[340771816,1729789888206,-227.71499467,0.00063399,120]
[340771817,1729789888216,-500.0,0.00063399,120]
[340771818,1729789888225,-500.0,0.00063399,120]
[340771819,1729789888235,-500.0,0.00063399,120]
[340771820,1729789888245,-500.0,0.00063399,120]
[340771821,1729789888254,-500.0,0.00063399,120]
[340771822,1729789888263,-500.0,0.00063399,120]
[340771823,1729789888273,-500.0,0.00063399,120]
[340771824,1729789888282,-500.0,0.00063399,120]
[340771825,1729789888292,-500.0,0.00063399,120]
[340771826,1729789888301,-500.0,0.00063399,120]
[340771827,1729789888310,-500.0,0.00063399,120]
[340771828,1729789888320,-500.0,0.00063399,120]
[340771829,1729789888329,-151.0,0.00063399,120]
[340771830,1729789888342,-500.0,0.00063399,120]
[340771831,1729789888351,-332.84411369,0.00063399,120]
[340771832,1729789888361,-500.0,0.00063399,120]
[340771833,1729789888370,-500.0,0.00063399,120]
[340771834,1729789888379,-363.51074331,0.00063399,120]
[340771835,1729789888388,-151.0,0.00063399,120]
[340771836,1729789888397,-500.0,0.00063399,30]
[340771837,1729789888406,-500.0,0.00063399,30]
[340771838,1729789888415,-151.0,0.00063399,120]
[340771839,1729789888425,-500.0,0.00063399,30]
[340771840,1729789888434,-500.0,0.00063399,30]
[340771841,1729789888443,-500.0,0.00063399,30]
[340771842,1729789888452,-500.0,0.00063399,30]
[340771843,1729789888461,-500.0,0.00063399,30]
[340771844,1729789888471,-484.81820347,0.00063399,30]
[340771845,1729789888480,-151.0,0.00063399,120]
[340771846,1729789888489,-151.0,0.00063399,120]
[340771847,1729789888498,-151.0,0.00063399,120]
[340771848,1729789888508,-553.05,0.00063399,120]
[340771849,1729789888516,-553.05,0.00063399,120]
[340771850,1729789888526,-553.05,0.00063399,120]
[340771851,1729789888535,-553.05,0.00063399,120]
[340771852,1729789888544,-553.05,0.00063399,120]
[340771853,1729789888553,-553.05,0.00063399,120]
[340771854,1729789888563,-553.05,0.00063399,120]
[340771855,1729789888572,-553.05,0.00063399,120]
[340771856,1729789888585,-553.05,0.00063399,120]
[340771857,1729789888594,-151.0,0.00063399,120]
[340771858,1729789888603,-151.0,0.00063399,120]
[340771859,1729789888613,-500.0,0.00063399,120]
[340771860,1729789888622,-500.0,0.00063399,120]
[340771861,1729789888632,-500.0,0.00063399,120]
[340771862,1729789888641,-500.0,0.00063399,120]
[340771863,1729789888650,-500.0,0.00063399,120]
[340771864,1729789888659,-500.0,0.00063399,120]
[340771865,1729789888668,-500.0,0.00063399,120]
[340771866,1729789888678,-500.0,0.00063399,120]
[340771867,1729789888686,-500.0,0.00063399,120]
[340771868,1729789888696,-500.0,0.00063399,120]
[340771869,1729789888705,-500.0,0.00063399,120]
[340771870,1729789888714,-500.0,0.00063399,120]
[340771871,1729789888723,-325.62332362,0.00063399,120]
[340771872,1729789888740,-174.37667638,0.00063399,120]
[340771873,1729789888749,-500.0,0.00063399,120]
[340771874,1729789888759,-184.61412066,0.00063399,120]
[340771875,1729789888770,-474.94587934,0.00063399,120]
[340771876,1729789888779,-67.84730539,0.00063399,120]
[340771877,1729789888790,-336.31440713,0.00063399,120]
[340771878,1729789888802,-255.39828748,0.00063399,120]
[340771879,1729789888811,-659.56,0.00063399,120]
[340771880,1729789888821,-659.56,0.00063399,120]
[340771881,1729789888834,-500.0,0.00063399,120]
[340771882,1729789888844,-500.0,0.00063399,120]
[340771883,1729789888853,-500.0,0.00063399,120]
[340771884,1729789888863,-500.0,0.00063399,120]
[340771885,1729789888872,-876.2,0.00063399,120]
[340771886,1729789888882,-876.2,0.00063399,120]
[340771887,1729789888891,-876.2,0.00063399,120]
[340771888,1729789888900,-876.2,0.00063399,120]
[340771889,1729789888911,-500.0,0.00063399,120]
[340771890,1729789888921,-500.0,0.00063399,120]
[340771891,1729789888931,-500.0,0.00063399,120]
[340771892,1729789888941,-500.0,0.00063399,120]
[340771893,1729789888951,-913.65,0.00063399,120]
[340771894,1729789888960,-913.65,0.00063399,120]
[340771895,1729789888970,-913.65,0.00063399,120]
[340771896,1729789888980,-913.65,0.00063399,120]
[340771897,1729789888989,-545.44,0.00063399,120]
[340771898,1729789888999,-545.44,0.00063399,120]
[340771899,1729789889009,-545.44,0.00063399,120]
[340771900,1729789889018,-338.65053446,0.00063399,120]
[340771901,1729789889031,-206.78946554,0.00063399,120]
[340771902,1729789889040,-1060.66,0.00063399,120]
[340771903,1729789889050,-1060.66,0.00063399,120]
[340771904,1729789889059,-1060.66,0.00063399,120]
[340771905,1729789889069,-1060.66,0.00063399,120]
[340771906,1729789889079,-151.0,0.00063399,120]
[340771907,1729789889088,-151.0,0.00063399,120]
[340771908,1729789889100,-562.05,0.00063399,120]
[340771909,1729789889110,-562.05,0.00063399,120]
[340771910,1729789889119,-562.05,0.00063399,120]
[340771911,1729789889128,-562.05,0.00063399,120]
[340771912,1729789889138,-510.57,0.00063399,120]
[340771913,1729789889148,-510.57,0.00063399,120]
[340771914,1729789889157,-510.57,0.00063399,120]
[340771915,1729789889167,-510.57,0.00063399,120]
[340771916,1729789889178,-766.77,0.00063399,120]
[340771917,1729789889188,-766.77,0.00063399,120]
[340771918,1729789889198,-766.77,0.00063399,120]
[340771919,1729789889207,-766.77,0.00063399,120]
[340771920,1729789889216,-948.63,0.00063399,120]
[340771921,1729789889226,-948.63,0.00063399,120]
[340771922,1729789889235,-948.63,0.00063399,120]
[340771923,1729789889244,-948.63,0.00063399,120]
[340771924,1729789889255,-500.0,0.00063399,120]
[340771925,1729789889264,-500.0,0.00063399,120]
[340771926,1729789889273,-500.0,0.00063399,120]
[340771927,1729789889283,-500.0,0.00063399,120]
[340771928,1729789889292,-500.0,0.00063399,120]
[340771929,1729789889301,-500.0,0.00063399,120]
[340771930,1729789889310,-500.0,0.00063399,120]
[340771931,1729789889319,-500.0,0.00063399,120]
[340771932,1729789889328,-500.0,0.00063399,120]
[340771933,1729789889339,-151.0,0.00063399,120]
[340771934,1729789889347,-500.0,0.00063399,120]
[340771935,1729789889357,-539.1304234,0.00063399,120]
[340771936,1729789889366,-803.8,0.00063399,120]
[340771937,1729789889375,-803.8,0.00063399,120]
[340771938,1729789889384,-803.8,0.00063399,120]
[340771939,1729789889393,-803.8,0.00063399,120]
[340771940,1729789889403,-222.977764,0.00063399,120]
[340771941,1729789889412,-5209.5,0.00063399,120]
[340771942,1729789889421,-5209.5,0.00063399,120]
[340771943,1729789889430,-5209.5,0.00063399,120]
[340771944,1729789889440,-2883.64098024,0.00063399,120]
[340771945,1729789889452,-2325.85901976,0.00063399,120]
[340771946,1729789889461,-1019.39,0.00063399,120]
[340771947,1729789889471,-1019.39,0.00063399,120]
[340771948,1729789889480,-1019.39,0.00063399,120]
[340771949,1729789889490,-1019.39,0.00063399,120]
[340771950,1729789889499,-173.75806,0.00063399,120]
[340771951,1729789889508,-151.0,0.00063399,120]
[340771952,1729789889518,-1562.94,0.00063399,120]
[340771953,1729789889527,-1562.94,0.00063399,120]
[340771954,1729789889536,-1562.94,0.00063399,120]
[340771955,1729789889546,-1562.94,0.00063399,120]
[340771956,1729789889556,-722.9,0.00063399,14]
[340771957,1729789889565,-722.9,0.00063399,14]
[340771958,1729789889575,-722.9,0.00063399,14]
[340771959,1729789889585,-728.95,0.00063399,120]
[340771960,1729789889594,-722.9,0.00063399,14]
[340771961,1729789889604,-728.95,0.00063399,120]
[340771962,1729789889614,-722.9,0.00063399,14]
[340771963,1729789889623,-728.95,0.00063399,120]
[340771964,1729789889634,-728.95,0.00063399,120]
[340771965,1729789889643,-722.9,0.00063399,14]
[340771966,1729789889652,-728.95,0.00063399,120]
[340771967,1729789889661,-722.9,0.00063399,14]
[340771968,1729789889670,-728.95,0.00063399,120]
[340771969,1729789889679,-722.9,0.00063399,14]
[340771970,1729789889783,-728.95,0.00063399,120]
[340771971,1729789889793,-728.95,0.00063399,120]
[340771972,1729789889802,-500.0,0.00063399,120]
[340771973,1729789889811,-225.13350205,0.00063399,120]
[340771974,1729789889821,-500.0,0.00063399,120]
[340771975,1729789889829,-500.0,0.00063399,120]
[340771976,1729789889839,-500.0,0.00063399,120]
[340771977,1729789889849,-500.0,0.00063399,120]
[340771978,1729789889858,-500.0,0.00063399,120]
[340771979,1729789889867,-500.0,0.00063399,120]
[340771980,1729789889877,-151.0,0.00063399,120]
[340771981,1729789889886,-500.0,0.00063399,120]
[340771982,1729789889895,-500.0,0.00063399,120]
[340771983,1729789889906,-1233.15,0.00063399,120]
[340771984,1729789889915,-1233.15,0.00063399,120]
[340771985,1729789889925,-1233.15,0.00063399,120]
[340771986,1729789889935,-510.22,0.00063399,120]
[340771987,1729789889944,-1233.15,0.00063399,120]
[340771988,1729789889954,-510.22,0.00063399,120]
[340771989,1729789889963,-510.22,0.00063399,120]
[340771990,1729789889973,-510.22,0.00063399,120]
[340771991,1729789889982,-620.85,0.00063399,120]
[340771992,1729789889992,-620.85,0.00063399,120]
[340771993,1729789890002,-620.85,0.00063399,120]
[340771994,1729789890012,-620.85,0.00063399,120]
[340771995,1729789890021,-620.85,0.00063399,120]
[340771996,1729789890029,-620.85,0.00063399,120]
[340771997,1729789890039,-620.85,0.00063399,120]
[340771998,1729789890048,-620.85,0.00063399,120]
[340771999,1729789890057,-1364.5,0.00063399,120]
[340772000,1729789890067,-1364.5,0.00063399,120]
[340772001,1729789890076,-1364.5,0.00063399,120]
[340772002,1729789890087,-1364.5,0.00063399,120]
[340772003,1729789890097,-151.0,0.00063399,120]
[340772004,1729789890109,-151.0,0.00063399,120]
[340772005,1729789890119,-500.0,0.00063399,120]
[340772006,1729789890128,-500.0,0.00063399,120]
[340772007,1729789890139,-500.0,0.00063399,120]
[340772008,1729789890148,-500.0,0.00063399,120]
[340772009,1729789890158,-500.0,0.00063399,120]
[340772010,1729789890167,-500.0,0.00063399,120]
[340772011,1729789890176,-613.85967061,0.00063399,120]
[340772012,1729789890187,-151.0,0.00063399,120]
[340772013,1729789890197,-558.33,0.00063399,120]
[340772014,1729789890207,-500.0,0.00063399,120]
[340772015,1729789890217,-1393.17,0.00063399,120]
[340772016,1729789890226,-558.33,0.00063399,120]
[340772017,1729789890236,-500.0,0.00063399,120]
[340772018,1729789890246,-1393.17,0.00063399,120]
[340772019,1729789890255,-558.33,0.00063399,120]
[340772020,1729789890264,-500.0,0.00063399,120]
[340772021,1729789890274,-1393.17,0.00063399,120]
[340772022,1729789890284,-558.33,0.00063399,120]
[340772023,1729789890294,-500.0,0.00063399,120]
[340772024,1729789890303,-1393.17,0.00063399,120]
[340772025,1729789890313,-558.33,0.00063399,120]
[340772026,1729789890322,-558.33,0.00063399,120]
[340772027,1729789890332,-558.33,0.00063399,120]
[340772028,1729789890342,-558.33,0.00063399,120]
[340772029,1729789890351,-500.0,0.00063399,120]